[Event "Vastgota Open 2022"]
[Site "Skara stadshotell, Jarnvagsgatan 5, Skara, Sweden"]
[Date "2022.10.29"]
[Round "5.6"]
[White "Madebrink, Lars"]
[Black "Bengtsson, Siv"]
[Result "1-0"]
[TimeControl "30 minutes + 10 seconds per move from move one."]
[WhiteFideId "1701347"]
[BlackFideId "1701673"]
[WhiteElo "2094"]
[BlackElo "1952"]

1. d4 {[%clk 00:30:16]} {[%emt 00:00:02]} Nf6 {[%clk 00:30:16]} {[%emt
00:00:06]} 2. c4 {[%clk 00:30:24]} {[%emt 00:00:02]} e6 {[%clk 00:30:20]}
{[%emt 00:00:06]} 3. Nc3 {[%clk 00:30:31]} {[%emt 00:00:03]} Bb4 {[%clk
00:30:26]} {[%emt 00:00:04]} 4. f3 {[%clk 00:30:38]} {[%emt 00:00:03]} O-O
{[%clk 00:29:53]} {[%emt 00:00:44]} 5. e4 {[%clk 00:30:20]} {[%emt 00:00:27]}
d5 {[%clk 00:28:06]} {[%emt 00:01:56]} 6. e5 {[%clk 00:30:13]} {[%emt
00:00:17]} Nfd7 {[%clk 00:27:25]} {[%emt 00:00:51]} 7. cxd5 {[%clk 00:28:45]}
{[%emt 00:01:39]} exd5 {[%clk 00:26:59]} {[%emt 00:00:36]} 8. f4 {[%clk
00:28:51]} {[%emt 00:00:03]} c5 {[%clk 00:22:53]} {[%emt 00:04:16]} 9. Nf3
{[%clk 00:28:00]} {[%emt 00:01:02]} Nc6 {[%clk 00:22:04]} {[%emt 00:01:00]} 10.
Be3 {[%clk 00:27:37]} {[%emt 00:00:31]} cxd4 {[%clk 00:19:29]} {[%emt
00:02:46]} 11. Bxd4 {[%clk 00:27:11]} {[%emt 00:00:36]} Re8 {[%clk 00:15:50]}
{[%emt 00:03:48]} 12. a3 {[%clk 00:25:08]} {[%emt 00:02:14]} Bxc3+ {[%clk
00:15:30]} {[%emt 00:00:29]} 13. Bxc3 {[%clk 00:25:11]} {[%emt 00:00:07]} Nc5
{[%clk 00:15:21]} {[%emt 00:00:19]} 14. Be2 {[%clk 00:23:57]} {[%emt 00:01:24]}
Ne4 {[%clk 00:14:22]} {[%emt 00:01:09]} 15. Bd4 {[%clk 00:23:09]} {[%emt
00:00:58]} Bg4 {[%clk 00:12:55]} {[%emt 00:01:37]} 16. O-O {[%clk 00:22:48]}
{[%emt 00:00:30]} Rc8 {[%clk 00:11:26]} {[%emt 00:01:39]} 17. Rc1 {[%clk
00:18:36]} {[%emt 00:04:23]} h6 {[%clk 00:10:38]} {[%emt 00:00:58]} 18. h3
{[%clk 00:17:38]} {[%emt 00:01:07]} Be6 {[%clk 00:10:10]} {[%emt 00:00:39]} 19.
Bb5 {[%clk 00:15:21]} {[%emt 00:02:26]} a6 {[%clk 00:08:57]} {[%emt 00:01:23]}
20. Ba4 {[%clk 00:13:58]} {[%emt 00:01:34]} Ng3 {[%clk 00:07:37]} {[%emt
00:01:30]} 21. Rf2 {[%clk 00:12:54]} {[%emt 00:01:14]} b5 {[%clk 00:07:31]}
{[%emt 00:00:16]} 22. Bc2 {[%clk 00:11:56]} {[%emt 00:01:08]} Nf5 {[%clk
00:04:44]} {[%emt 00:02:57]} 23. Qd3 {[%clk 00:10:40]} {[%emt 00:01:26]} g6
{[%clk 00:04:06]} {[%emt 00:00:48]} 24. Rd1 {[%clk 00:08:42]} {[%emt 00:02:08]}
Ng3 {[%clk 00:03:38]} {[%emt 00:00:38]} 25. Qe3 {[%clk 00:06:15]} {[%emt
00:02:36]} Bf5 {[%clk 00:03:01]} {[%emt 00:00:48]} 26. Bxf5 {[%clk 00:04:49]}
{[%emt 00:01:36]} Nxf5 {[%clk 00:03:09]} {[%emt 00:00:03]} 27. Qd3 {[%clk
00:04:50]} {[%emt 00:00:07]} Qd7 {[%clk 00:02:43]} {[%emt 00:00:36]} 28. Kh2
{[%clk 00:03:39]} {[%emt 00:01:21]} Red8 {[%clk 00:02:27]} {[%emt 00:00:27]} 29.
Bb6 {[%clk 00:03:38]} {[%emt 00:00:11]} Re8 {[%clk 00:02:15]} {[%emt 00:00:22]}
30. Qxd5 {[%clk 00:03:39]} {[%emt 00:00:09]} Qb7 {[%clk 00:02:18]} {[%emt
00:00:07]} 31. Bd4 {[%clk 00:03:19]} {[%emt 00:00:30]} Rcd8 {[%clk 00:01:33]}
{[%emt 00:00:55]} 32. Qe4 {[%clk 00:03:20]} {[%emt 00:00:08]} Nd6 {[%clk
00:01:36]} {[%emt 00:00:08]} 33. Qe1 {[%clk 00:01:58]} {[%emt 00:01:32]} Nxd4
{[%clk 00:00:55]} {[%emt 00:00:51]} 34. Rxd4 {[%clk 00:01:38]} {[%emt
00:00:29]} Qb6 {[%clk 00:00:41]} {[%emt 00:00:26]} 35. Rfd2 {[%clk 00:01:20]}
{[%emt 00:00:26]} Nc4 {[%clk 00:00:42]} {[%emt 00:00:09]} 36. Rxd8 {[%clk
00:01:19]} {[%emt 00:00:12]} Rxd8 {[%clk 00:00:51]} 37. Rxd8+ {[%clk 00:01:26]}
{[%emt 00:00:02]} Qxd8 {[%clk 00:01:00]} {[%emt 00:00:01]} 38. e6 {[%clk
00:01:34]} {[%emt 00:00:02]} Qe7 {[%clk 00:00:46]} {[%emt 00:00:24]} 39. exf7+
{[%clk 00:01:28]} {[%emt 00:00:16]} Qxf7 {[%clk 00:00:53]} {[%emt 00:00:04]} 40.
Qe4 {[%clk 00:01:19]} {[%emt 00:00:19]} Kh7 {[%clk 00:00:29]} {[%emt 00:00:34]}
41. b3 {[%clk 00:01:07]} {[%emt 00:00:21]} Nd6 {[%clk 00:00:30]} {[%emt
00:00:09]} 42. Qe5 {[%clk 00:01:05]} {[%emt 00:00:12]} Nf5 {[%clk 00:00:24]}
{[%emt 00:00:16]} 43. g4 {[%clk 00:01:07]} {[%emt 00:00:08]} Ne7 {[%clk
00:00:26]} {[%emt 00:00:08]} 44. Nd4 {[%clk 00:01:16]} {[%emt 00:00:02]} Nd5
{[%clk 00:00:24]} {[%emt 00:00:12]} 45. f5 {[%clk 00:01:15]} {[%emt 00:00:12]}
gxf5 {[%clk 00:00:19]} {[%emt 00:00:15]} 46. Nxf5 {[%clk 00:01:23]} {[%emt
00:00:02]} Nf6 {[%clk 00:00:22]} {[%emt 00:00:09]} 47. Nd4 {[%clk 00:01:02]}
{[%emt 00:00:29]} Nd5 {[%clk 00:00:18]} {[%emt 00:00:14]} 48. Kg3 {[%clk
00:00:57]} {[%emt 00:00:14]} Qc7 {[%clk 00:00:20]} {[%emt 00:00:08]} 49. Qxc7+
{[%clk 00:00:59]} {[%emt 00:00:10]} Nxc7 {[%clk 00:00:29]} 50. Kf4 {[%clk
00:01:06]} {[%emt 00:00:02]} Kg6 {[%clk 00:00:23]} {[%emt 00:00:16]} 51. h4
{[%clk 00:01:12]} {[%emt 00:00:04]} Nd5+ {[%clk 00:00:27]} {[%emt 00:00:06]} 52.
Ke5 {[%clk 00:01:12]} {[%emt 00:00:09]} Nf6 {[%clk 00:00:32]} {[%emt 00:00:05]}
53. h5+ {[%clk 00:01:12]} {[%emt 00:00:10]} Kf7 {[%clk 00:00:37]} {[%emt
00:00:05]} 54. Kf5 {[%clk 00:01:17]} {[%emt 00:00:06]} Nd5 {[%clk 00:00:32]}
{[%emt 00:00:14]} 55. g5 {[%clk 00:01:10]} {[%emt 00:00:17]} hxg5 {[%clk
00:00:32]} {[%emt 00:00:10]} 56. Kxg5 {[%clk 00:01:18]} {[%emt 00:00:04]} Nf6
{[%clk 00:00:25]} {[%emt 00:00:15]} 57. h6 {[%clk 00:01:08]} {[%emt 00:00:21]}
Ne4+ {[%clk 00:00:17]} {[%emt 00:00:18]} 58. Kf4 {[%clk 00:01:13]} {[%emt
00:00:05]} Nc5 {[%clk 00:00:20]} {[%emt 00:00:07]} 59. Kf5 {[%clk 00:01:07]}
{[%emt 00:00:15]} Nd3 {[%clk 00:00:22]} {[%emt 00:00:08]} 60. Ne6 {[%clk
00:01:06]} {[%emt 00:00:11]} Kg8 {[%clk 00:00:20]} {[%emt 00:00:11]} 61. Nf4
{[%clk 00:01:01]} {[%emt 00:00:15]} Nc5 {[%clk 00:00:23]} {[%emt 00:00:08]} 62.
Kg6 {[%clk 00:01:08]} {[%emt 00:00:03]} Nxb3 {[%clk 00:00:17]} {[%emt
00:00:16]} 63. h7+ {[%clk 00:01:14]} {[%emt 00:00:03]} Kh8 {[%clk 00:00:26]}
{[%emt 00:00:01]} 64. Kh6 {[%clk 00:01:24]} Nc5 {[%clk 00:00:30]} {[%emt
00:00:07]} 65. Ng6# {[%clk 00:01:30]} {[%emt 00:00:05]} 1-0

[Event "Vastgota Open 2022"]
[Site "Skara stadshotell, Jarnvagsgatan 5, Skara, Sweden"]
[Date "2022.10.29"]
[Round "5.7"]
[White "Nilsson, Patrik"]
[Black "Cederqvist, Niclas"]
[Result "1-0"]
[TimeControl "30 minutes + 10 seconds per move from move one."]
[WhiteFideId "1708171"]
[BlackFideId "1702076"]
[WhiteElo "2085"]
[BlackElo "1883"]

1. d4 {[%clk 00:30:17]} {[%emt 00:00:02]} d5 {[%clk 00:30:15]} {[%emt
00:00:05]} 2. Bf4 {[%clk 00:30:24]} {[%emt 00:00:03]} Nf6 {[%clk 00:30:01]}
{[%emt 00:00:23]} 3. e3 {[%clk 00:30:33]} {[%emt 00:00:02]} Bf5 {[%clk
00:30:05]} {[%emt 00:00:06]} 4. c4 {[%clk 00:30:21]} {[%emt 00:00:22]} e6
{[%clk 00:30:03]} {[%emt 00:00:12]} 5. Nc3 {[%clk 00:30:22]} {[%emt 00:00:09]}
c6 {[%clk 00:30:01]} {[%emt 00:00:12]} 6. Qb3 {[%clk 00:29:40]} {[%emt
00:00:52]} b6 {[%clk 00:29:21]} {[%emt 00:00:51]} 7. Nf3 {[%clk 00:29:01]}
{[%emt 00:00:49]} Bd6 {[%clk 00:29:06]} {[%emt 00:00:24]} 8. Ne5 {[%clk
00:28:02]} {[%emt 00:01:09]} Nh5 {[%clk 00:28:21]} {[%emt 00:00:55]} 9. cxd5
{[%clk 00:25:53]} {[%emt 00:02:19]} Nxf4 {[%clk 00:27:21]} {[%emt 00:01:10]} 10.
exf4 {[%clk 00:25:56]} {[%emt 00:00:07]} exd5 {[%clk 00:26:53]} {[%emt
00:00:37]} 11. Be2 {[%clk 00:25:40]} {[%emt 00:00:26]} O-O {[%clk 00:24:28]}
{[%emt 00:02:35]} 12. O-O {[%clk 00:25:27]} {[%emt 00:00:24]} a5 {[%clk
00:22:24]} {[%emt 00:02:14]} 13. a4 {[%clk 00:24:12]} {[%emt 00:01:26]} Bd7
{[%clk 00:18:31]} {[%emt 00:04:02]} 14. Bf3 {[%clk 00:22:18]} {[%emt 00:02:04]}
Ra7 {[%clk 00:17:27]} {[%emt 00:01:15]} 15. Rac1 {[%clk 00:22:05]} {[%emt
00:00:23]} Na6 {[%clk 00:16:09]} {[%emt 00:01:27]} 16. Nd1 {[%clk 00:20:10]}
{[%emt 00:02:05]} Nb4 {[%clk 00:15:56]} {[%emt 00:00:23]} 17. Ne3 {[%clk
00:20:02]} {[%emt 00:00:19]} Be8 {[%clk 00:15:02]} {[%emt 00:01:04]} 18. Nc2
{[%clk 00:19:17]} {[%emt 00:00:54]} Rc7 {[%clk 00:13:35]} {[%emt 00:01:37]} 19.
Nxb4 {[%clk 00:18:53]} {[%emt 00:00:34]} axb4 {[%clk 00:12:45]} {[%emt
00:01:01]} 20. Rc2 {[%clk 00:18:33]} {[%emt 00:00:29]} Bxe5 {[%clk 00:07:56]}
{[%emt 00:04:59]} 21. fxe5 {[%clk 00:18:04]} {[%emt 00:00:38]} Qe7 {[%clk
00:07:12]} {[%emt 00:00:55]} 22. Qe3 {[%clk 00:14:55]} {[%emt 00:03:20]} Ra7
{[%clk 00:04:50]} {[%emt 00:02:32]} 23. b3 {[%clk 00:14:59]} {[%emt 00:00:06]}
f6 {[%clk 00:04:37]} {[%emt 00:00:22]} 24. Re1 {[%clk 00:14:28]} {[%emt
00:00:41]} fxe5 {[%clk 00:04:37]} {[%emt 00:00:11]} 25. dxe5 {[%clk 00:13:11]}
{[%emt 00:01:27]} Rb7 {[%clk 00:03:41]} {[%emt 00:01:06]} 26. e6 {[%clk
00:12:37]} {[%emt 00:00:43]} Rf6 {[%clk 00:03:06]} {[%emt 00:00:45]} 27. Qe5
{[%clk 00:11:43]} {[%emt 00:01:03]} Rc7 {[%clk 00:01:45]} {[%emt 00:01:32]} 28.
Bxd5 {[%clk 00:11:21]} {[%emt 00:00:32]} c5 {[%clk 00:00:51]} {[%emt 00:01:04]}
29. Rd2 {[%clk 00:10:45]} {[%emt 00:00:46]} h6 {[%clk 00:00:41]} {[%emt
00:00:19]} 30. Bc4 {[%clk 00:10:21]} {[%emt 00:00:35]} Kh7 {[%clk 00:00:29]}
{[%emt 00:00:22]} 31. Rd6 {[%clk 00:09:41]} {[%emt 00:00:50]} Rc6 {[%clk
00:00:25]} {[%emt 00:00:14]} 32. Qe4+ {[%clk 00:09:18]} {[%emt 00:00:32]} 1-0

[Event "Vastgota Open 2022"]
[Site "Skara stadshotell, Jarnvagsgatan 5, Skara, Sweden"]
[Date "2022.10.29"]
[Round "5.8"]
[White "Johansson, Stefan"]
[Black "Kleimark, Anders"]
[Result "0-1"]
[TimeControl "30 minutes + 10 seconds per move from move one."]
[WhiteFideId "1733745"]
[BlackFideId "1709968"]
[WhiteElo "1946"]
[BlackElo "2048"]

1. e4 {[%clk 00:30:19]} c5 {[%clk 00:30:12]} {[%emt 00:00:08]} 2. Nc3 {[%clk
00:30:20]} {[%emt 00:00:09]} d6 {[%clk 00:30:00]} {[%emt 00:00:22]} 3. g3
{[%clk 00:30:23]} {[%emt 00:00:08]} g6 {[%clk 00:29:56]} {[%emt 00:00:13]} 4.
Bg2 {[%clk 00:30:26]} {[%emt 00:00:07]} Bg7 {[%clk 00:29:53]} {[%emt 00:00:12]}
5. d3 {[%clk 00:30:10]} {[%emt 00:00:27]} Nc6 {[%clk 00:29:51]} {[%emt
00:00:12]} 6. f4 {[%clk 00:30:03]} {[%emt 00:00:18]} e6 {[%clk 00:29:37]}
{[%emt 00:00:24]} 7. Nf3 {[%clk 00:30:04]} {[%emt 00:00:09]} Nge7 {[%clk
00:29:20]} {[%emt 00:00:26]} 8. O-O {[%clk 00:30:07]} {[%emt 00:00:07]} O-O
{[%clk 00:29:18]} {[%emt 00:00:12]} 9. a4 {[%clk 00:29:25]} {[%emt 00:00:52]}
Rb8 {[%clk 00:28:29]} {[%emt 00:00:58]} 10. Ne2 {[%clk 00:27:40]} {[%emt
00:01:55]} a6 {[%clk 00:27:02]} {[%emt 00:01:37]} 11. c3 {[%clk 00:26:02]}
{[%emt 00:01:49]} b5 {[%clk 00:26:21]} {[%emt 00:00:51]} 12. Be3 {[%clk
00:25:10]} {[%emt 00:01:02]} bxa4 {[%clk 00:25:42]} {[%emt 00:00:49]} 13. Qd2
{[%clk 00:23:38]} {[%emt 00:01:42]} Qb6 {[%clk 00:23:14]} {[%emt 00:02:37]} 14.
Rfb1 {[%clk 00:21:20]} {[%emt 00:02:28]} Qb5 {[%clk 00:20:04]} {[%emt
00:03:20]} 15. d4 {[%clk 00:17:38]} {[%emt 00:03:52]} Na5 {[%clk 00:19:14]}
{[%emt 00:01:01]} 16. Qc2 {[%clk 00:16:21]} {[%emt 00:01:27]} Nb3 {[%clk
00:17:05]} {[%emt 00:02:19]} 17. Ra2 {[%clk 00:15:15]} {[%emt 00:01:16]} Bd7
{[%clk 00:15:36]} {[%emt 00:01:38]} 18. dxc5 {[%clk 00:13:49]} {[%emt
00:01:36]} Nxc5 {[%clk 00:14:29]} {[%emt 00:01:18]} 19. Ned4 {[%clk 00:13:25]}
{[%emt 00:00:34]} Qb7 {[%clk 00:12:48]} {[%emt 00:01:51]} 20. e5 {[%clk
00:12:29]} {[%emt 00:01:05]} d5 {[%clk 00:11:32]} {[%emt 00:01:26]} 21. Bf1
{[%clk 00:11:45]} {[%emt 00:00:54]} Rfc8 {[%clk 00:10:52]} {[%emt 00:00:50]} 22.
Qd2 {[%clk 00:11:02]} {[%emt 00:00:52]} Ne4 {[%clk 00:10:43]} {[%emt 00:00:21]}
23. Qe1 {[%clk 00:09:00]} {[%emt 00:02:12]} Nxc3 {[%clk 00:09:43]} {[%emt
00:01:10]} 24. Raa1 {[%clk 00:09:08]} {[%emt 00:00:02]} Nxb1 {[%clk 00:09:44]}
{[%emt 00:00:08]} 25. Rxb1 {[%clk 00:09:17]} {[%emt 00:00:01]} a3 {[%clk
00:09:13]} {[%emt 00:00:42]} 26. b3 {[%clk 00:09:06]} {[%emt 00:00:21]} Nc6
{[%clk 00:08:25]} {[%emt 00:00:57]} 27. Nxc6 {[%clk 00:08:22]} {[%emt
00:00:54]} Bxc6 {[%clk 00:07:26]} {[%emt 00:01:09]} 28. Qa5 {[%clk 00:08:01]}
{[%emt 00:00:31]} Bb5 {[%clk 00:06:49]} {[%emt 00:00:49]} 29. Qxa3 {[%clk
00:06:23]} {[%emt 00:01:46]} Bxf1 {[%clk 00:06:54]} {[%emt 00:00:05]} 30. Kxf1
{[%clk 00:06:31]} d4 {[%clk 00:06:48]} {[%emt 00:00:16]} 31. Nxd4 {[%clk
00:06:37]} {[%emt 00:00:04]} Qh1+ {[%clk 00:06:55]} {[%emt 00:00:03]} 32. Bg1
{[%clk 00:06:46]} Rd8 {[%clk 00:06:19]} {[%emt 00:00:48]} 33. Ne2 {[%clk
00:05:56]} {[%emt 00:01:00]} Rd2 {[%clk 00:05:15]} {[%emt 00:01:14]} 34. Qa5
{[%clk 00:05:44]} {[%emt 00:00:22]} Qf3+ {[%clk 00:05:12]} {[%emt 00:00:12]}
0-1

[Event "Vastgota Open 2022"]
[Site "Skara stadshotell, Jarnvagsgatan 5, Skara, Sweden"]
[Date "2022.10.29"]
[Round "5.9"]
[White "Danielsson, Fredrik"]
[Black "Wengholm, Anders"]
[Result "0-1"]
[TimeControl "30 minutes + 10 seconds per move from move one."]
[WhiteFideId "1729993"]
[BlackFideId "1704818"]
[WhiteElo "2082"]
[BlackElo "2179"]

1. e4 {[%clk 00:30:15]} {[%emt 00:00:03]} c5 {[%clk 00:30:19]} {[%emt
00:00:02]} 2. Nc3 {[%clk 00:30:17]} {[%emt 00:00:08]} Nc6 {[%clk 00:30:19]}
{[%emt 00:00:10]} 3. Bb5 {[%clk 00:30:24]} {[%emt 00:00:03]} Nd4 {[%clk
00:30:14]} {[%emt 00:00:16]} 4. Nf3 {[%clk 00:30:31]} {[%emt 00:00:03]} a6
{[%clk 00:30:06]} {[%emt 00:00:18]} 5. Bd3 {[%clk 00:30:29]} {[%emt 00:00:12]}
d6 {[%clk 00:28:51]} {[%emt 00:01:25]} 6. Nxd4 {[%clk 00:29:28]} {[%emt
00:01:11]} cxd4 {[%clk 00:29:00]} 7. Ne2 {[%clk 00:29:36]} {[%emt 00:00:02]}
Qb6 {[%clk 00:28:36]} {[%emt 00:00:35]} 8. c3 {[%clk 00:29:14]} {[%emt
00:00:32]} dxc3 {[%clk 00:28:43]} {[%emt 00:00:03]} 9. dxc3 {[%clk 00:29:12]}
{[%emt 00:00:12]} e6 {[%clk 00:28:40]} {[%emt 00:00:13]} 10. O-O {[%clk
00:27:59]} {[%emt 00:01:23]} Nf6 {[%clk 00:28:41]} {[%emt 00:00:09]} 11. Nd4
{[%clk 00:26:10]} {[%emt 00:01:59]} Qc7 {[%clk 00:27:51]} {[%emt 00:01:00]} 12.
f4 {[%clk 00:25:03]} {[%emt 00:01:16]} g6 {[%clk 00:26:23]} {[%emt 00:01:38]}
13. f5 {[%clk 00:22:12]} {[%emt 00:03:01]} gxf5 {[%clk 00:25:35]} {[%emt
00:00:59]} 14. exf5 {[%clk 00:21:46]} {[%emt 00:00:36]} e5 {[%clk 00:25:43]}
{[%emt 00:00:02]} 15. Bg5 {[%clk 00:17:02]} {[%emt 00:04:54]} Be7 {[%clk
00:20:25]} {[%emt 00:05:28]} 16. Qe2 {[%clk 00:17:00]} {[%emt 00:00:10]} Rg8
{[%clk 00:15:05]} {[%emt 00:05:32]} 17. Bxf6 {[%clk 00:12:37]} {[%emt
00:04:33]} Bxf6 {[%clk 00:15:12]} {[%emt 00:00:03]} 18. c4 {[%clk 00:12:43]}
{[%emt 00:00:04]} Qc5 {[%clk 00:14:45]} {[%emt 00:00:37]} 19. Rf4 {[%clk
00:11:15]} {[%emt 00:01:37]} Kf8 {[%clk 00:13:06]} {[%emt 00:01:50]} 20. b4
{[%clk 00:10:46]} {[%emt 00:00:38]} Qa7 {[%clk 00:09:41]} {[%emt 00:03:36]} 21.
Qh5 {[%clk 00:06:59]} {[%emt 00:03:58]} exf4 {[%clk 00:09:05]} {[%emt
00:00:44]} 22. Qh6+ {[%clk 00:06:51]} {[%emt 00:00:18]} Ke7 {[%clk 00:04:28]}
{[%emt 00:04:48]} 23. Re1+ {[%clk 00:06:42]} {[%emt 00:00:19]} Be6 {[%clk
00:01:21]} {[%emt 00:03:16]} 24. c5 {[%clk 00:05:34]} {[%emt 00:01:19]} Bxd4+
{[%clk 00:01:11]} {[%emt 00:00:20]} 25. Kh1 {[%clk 00:05:41]} {[%emt 00:00:01]}
Be5 {[%clk 00:00:31]} {[%emt 00:00:52]} 26. cxd6+ {[%clk 00:02:35]} {[%emt
00:03:16]} Kxd6 {[%clk 00:00:36]} {[%emt 00:00:05]} 27. fxe6 {[%clk 00:00:29]}
{[%emt 00:02:15]} fxe6 {[%clk 00:00:21]} {[%emt 00:00:25]} 28. Bc4 {[%clk
00:00:26]} {[%emt 00:00:13]} Rg6 {[%clk 00:00:16]} {[%emt 00:00:17]} 29. Rd1+
{[%clk 00:00:29]} {[%emt 00:00:06]} Bd4 {[%clk 00:00:23]} {[%emt 00:00:03]} 30.
Qxf4+ {[%emt 00:00:28]} e5 31. Qf7 {[%clk 00:00:12]} {[%emt 00:00:09]} Qb6
{[%clk 00:00:20]} {[%emt 00:00:24]} 32. Rf1 {[%clk 00:00:13]} {[%emt 00:00:08]}
Qc6 {[%clk 00:00:22]} {[%emt 00:00:08]} 33. Rf6+ {[%clk 00:00:11]} {[%emt
00:00:11]} Rxf6 {[%clk 00:00:31]} {[%emt 00:00:02]} 34. Qxf6+ {[%clk 00:00:20]}
{[%emt 00:00:01]} Kc7 {[%clk 00:00:40]} 35. Qf7+ {[%clk 00:00:16]} {[%emt
00:00:14]} Kb6 {[%clk 00:00:47]} {[%emt 00:00:03]} 36. h3 {[%clk 00:00:13]}
{[%emt 00:00:13]} Rc8 {[%clk 00:00:53]} {[%emt 00:00:04]} 37. Bd5 {[%clk
00:00:21]} {[%emt 00:00:02]} Qc1+ {[%clk 00:01:02]} {[%emt 00:00:01]} 38. Kh2
{[%clk 00:00:29]} Qf4+ {[%clk 00:01:10]} {[%emt 00:00:03]} 0-1

[Event "Vastgota Open 2022"]
[Site "Skara stadshotell, Jarnvagsgatan 5, Skara, Sweden"]
[Date "2022.10.29"]
[Round "5.10"]
[White "Bailly, Thierry"]
[Black "Johnson, Daniel"]
[Result "0-1"]
[TimeControl "30 minutes + 10 seconds per move from move one."]
[WhiteFideId "26051680"]
[BlackFideId "1721283"]
[WhiteElo "1931"]
[BlackElo "2155"]

1. e4 {[%clk 00:30:19]} {[%emt 00:00:01]} e5 {[%clk 00:23:48]} {[%emt
00:06:32]} 2. Nf3 {[%clk 00:30:22]} {[%emt 00:00:06]} Nc6 {[%clk 00:23:57]}
{[%emt 00:00:02]} 3. Bc4 {[%clk 00:30:31]} {[%emt 00:00:01]} Nf6 {[%clk
00:23:59]} {[%emt 00:00:08]} 4. d3 {[%clk 00:30:40]} h6 {[%clk 00:24:07]}
{[%emt 00:00:02]} 5. c3 {[%clk 00:30:49]} d6 {[%clk 00:24:16]} {[%emt
00:00:02]} 6. a4 {[%clk 00:30:15]} {[%emt 00:00:44]} g5 {[%clk 00:23:12]}
{[%emt 00:01:14]} 7. h3 {[%clk 00:29:42]} {[%emt 00:00:44]} Bg7 {[%clk
00:23:15]} {[%emt 00:00:06]} 8. Nbd2 {[%clk 00:29:32]} {[%emt 00:00:20]} O-O
{[%clk 00:23:15]} {[%emt 00:00:10]} 9. Nf1 {[%clk 00:28:14]} {[%emt 00:01:28]}
Ne7 {[%clk 00:23:08]} {[%emt 00:00:17]} 10. Ng3 {[%clk 00:26:52]} {[%emt
00:01:32]} c6 {[%clk 00:22:54]} {[%emt 00:00:24]} 11. Ba2 {[%clk 00:26:01]}
{[%emt 00:01:00]} Be6 {[%clk 00:21:53]} {[%emt 00:01:11]} 12. Be3 {[%clk
00:25:38]} {[%emt 00:00:33]} Ng6 {[%clk 00:20:14]} {[%emt 00:01:50]} 13. Bxe6
{[%clk 00:22:02]} {[%emt 00:03:46]} fxe6 {[%clk 00:20:22]} {[%emt 00:00:03]} 14.
Qb3 {[%clk 00:22:05]} {[%emt 00:00:06]} Qd7 {[%clk 00:17:37]} {[%emt 00:02:54]}
15. Nf5 {[%clk 00:21:26]} {[%emt 00:00:49]} Nh5 {[%clk 00:16:31]} {[%emt
00:01:17]} 16. O-O-O {[%clk 00:19:54]} {[%emt 00:01:42]} d5 {[%clk 00:13:31]}
{[%emt 00:03:10]} 17. Nxg7 {[%clk 00:19:36]} {[%emt 00:00:28]} Qxg7 {[%clk
00:13:16]} {[%emt 00:00:25]} 18. Kb1 {[%clk 00:09:48]} {[%emt 00:09:58]} Nhf4
{[%clk 00:12:32]} {[%emt 00:00:54]} 19. Ne1 {[%clk 00:09:12]} {[%emt 00:00:47]}
Kh8 {[%clk 00:09:59]} {[%emt 00:02:42]} 20. g3 {[%clk 00:08:32]} {[%emt
00:00:51]} Nh5 {[%clk 00:10:07]} {[%emt 00:00:02]} 21. exd5 {[%clk 00:06:54]}
{[%emt 00:01:48]} exd5 {[%clk 00:09:54]} {[%emt 00:00:24]} 22. d4 {[%clk
00:06:24]} {[%emt 00:00:39]} e4 {[%clk 00:09:54]} {[%emt 00:00:09]} 23. Ng2
{[%clk 00:06:29]} {[%emt 00:00:05]} Kh7 {[%clk 00:04:47]} {[%emt 00:05:18]} 24.
Rdf1 {[%clk 00:05:14]} {[%emt 00:01:25]} Qf7 {[%clk 00:03:57]} {[%emt
00:01:00]} 25. Qd1 {[%clk 00:05:02]} {[%emt 00:00:22]} Qf3 {[%clk 00:04:02]}
{[%emt 00:00:06]} 26. Qxf3 {[%clk 00:03:21]} {[%emt 00:01:50]} Rxf3 {[%clk
00:03:54]} {[%emt 00:00:17]} 27. Ne1 {[%clk 00:03:26]} {[%emt 00:00:05]} Rf7
{[%clk 00:04:02]} {[%emt 00:00:02]} 28. Rfg1 {[%clk 00:03:04]} {[%emt
00:00:32]} Raf8 {[%clk 00:04:01]} {[%emt 00:00:11]} 29. Ng2 {[%clk 00:02:54]}
{[%emt 00:00:19]} Kg7 {[%clk 00:03:37]} {[%emt 00:00:34]} 30. h4 {[%clk
00:02:56]} {[%emt 00:00:10]} g4 {[%clk 00:03:41]} {[%emt 00:00:05]} 31. Kc2
{[%clk 00:02:55]} {[%emt 00:00:10]} Rxf2+ {[%clk 00:03:01]} {[%emt 00:00:51]}
32. Bxf2 {[%clk 00:02:58]} {[%emt 00:00:06]} Rxf2+ {[%clk 00:03:09]} {[%emt
00:00:02]} 33. Kb3 {[%clk 00:03:01]} {[%emt 00:00:06]} Nxg3 {[%clk 00:03:06]}
{[%emt 00:00:14]} 34. Ne3 {[%clk 00:00:59]} {[%emt 00:02:12]} Nxh1 {[%clk
00:02:08]} {[%emt 00:01:08]} 35. Nxg4 {[%clk 00:01:07]} {[%emt 00:00:02]} Rf3
{[%clk 00:02:12]} {[%emt 00:00:06]} 36. Rxh1 {[%clk 00:00:43]} {[%emt
00:00:34]} h5 {[%clk 00:02:03]} 37. Ne5 {[%clk 00:00:14]} {[%emt 00:00:57]}
Nxe5 {[%clk 00:02:11]} 38. dxe5 {[%clk 00:00:22]} {[%emt 00:00:05]} e3 {[%clk
00:01:36]} 39. Kc2 {[%clk 00:00:24]} {[%emt 00:00:53]} e2 {[%emt 00:00:18]} 40.
Re1 {[%clk 00:00:24]} Re3 {[%clk 00:01:38]} {[%emt 00:00:10]} 41. Kd2 {[%clk
00:00:21]} {[%emt 00:00:13]} Rxe5 {[%clk 00:01:46]} {[%emt 00:00:02]} 42. b4
{[%clk 00:00:29]} {[%emt 00:00:02]} Kf6 {[%clk 00:01:52]} {[%emt 00:00:04]} 43.
a5 {[%clk 00:00:38]} {[%emt 00:00:02]} Kf5 {[%clk 00:01:47]} {[%emt 00:00:15]}
44. Kd3 {[%clk 00:00:45]} {[%emt 00:00:02]} Kf4 {[%clk 00:01:37]} {[%emt
00:00:21]} 45. Kd4 {[%clk 00:00:43]} {[%emt 00:00:11]} Re4+ {[%clk 00:01:44]}
{[%emt 00:00:04]} 46. Kc5 {[%clk 00:00:48]} {[%emt 00:00:04]} Kf3 {[%clk
00:01:43]} {[%emt 00:00:11]} 47. Kd6 {[%clk 00:00:57]} Kf2 {[%clk 00:01:31]}
{[%emt 00:00:22]} 48. Rh1 {[%clk 00:01:05]} {[%emt 00:00:02]} e1=Q 49. Rxe1
{[%clk 00:01:13]} Kxe1 {[%clk 00:01:44]} {[%emt 00:00:02]} 50. Kc7 {[%clk
00:01:22]} {[%emt 00:00:02]} d4 {[%clk 00:01:33]} {[%emt 00:00:21]} 51. cxd4
{[%clk 00:01:23]} {[%emt 00:00:09]} Rxd4 {[%clk 00:01:42]} {[%emt 00:00:02]} 52.
Kxb7 {[%clk 00:01:31]} {[%emt 00:00:02]} Rxb4+ {[%clk 00:01:49]} {[%emt
00:00:03]} 53. Kxc6 {[%clk 00:01:36]} {[%emt 00:00:04]} Rxh4 {[%clk 00:01:56]}
{[%emt 00:00:02]} 0-1